bitfinex-derivatives/quotes_BTCF0:USTF0_20250322
["timestamp","ask_amount","ask_price","bid_price","bid_amount"]
[1742666021557,0.41328517,84313.0,84312.0,0.7981316]
[1742666023360,0.41328517,84313.0,84312.0,0.78604]
[1742666025668,0.41328517,84313.0,84312.0,0.42524]
[1742666032462,0.41328517,84313.0,84312.0,0.36184]
[1742666034469,0.41328517,84313.0,84312.0,0.42474]
[1742666040887,0.41328517,84313.0,84312.0,0.36184]
[1742666041096,0.1186656,84294.0,84293.0,0.24474034]
[1742666041292,0.2313056,84294.0,84293.0,0.24534034]
[1742666041597,0.24373912,84294.0,84293.0,0.24534034]
[1742666041796,0.36234549,84294.0,84293.0,0.24534034]
[1742666042191,0.42454549,84294.0,84293.0,0.24534034]
[1742666043387,0.42454549,84294.0,84293.0,0.21404034]
[1742666046706,0.42454549,84294.0,84293.0,0.0006]
[1742666047096,0.42454549,84294.0,84293.0,0.0335]
[1742666047497,0.42454549,84294.0,84293.0,0.152167]
[1742666047705,0.42454549,84294.0,84293.0,0.0335]
[1742666048211,0.41279197,84294.0,84293.0,0.152167]
[1742666050003,0.41279197,84294.0,84293.0,0.0335]
[1742666050209,0.41279197,84294.0,84293.0,0.0329]
[1742666050602,0.41279197,84294.0,84293.0,0.03354]
[1742666051105,0.41279197,84294.0,84293.0,0.152207]
[1742666051706,0.41279197,84294.0,84293.0,0.03354]
[1742666051909,0.41279197,84294.0,84293.0,0.0329]
[1742666052109,0.41279197,84294.0,84293.0,0.03354]
[1742666052506,0.41279197,84294.0,84293.0,0.152207]
[1742666056006,0.1186768,84286.0,84277.0,0.0593446]
[1742666056309,0.23219681,84286.0,84285.0,0.001058]
[1742666056510,0.23219681,84286.0,84285.0,0.000778]
[1742666056815,0.35084117,84286.0,84285.0,0.000778]
[1742666057210,0.41324117,84286.0,84285.0,0.000778]
[1742666058807,0.41324117,84286.0,84285.0,0.1194562]
[1742666059007,0.26416437,84286.0,84285.0,0.1194562]
[1742666059319,0.00088001,84286.0,84285.0,0.1194562]
[1742666059520,8e-05,84287.0,84286.0,0.1186768]
[1742666059713,8e-05,84287.0,84286.0,0.5129768]
[1742666059919,0.00096001,84287.0,84286.0,0.5129768]
[1742666060719,8e-05,84287.0,84286.0,0.5129768]
[1742666061021,0.00096001,84287.0,84286.0,0.5460768]
[1742666061609,0.11963541,84287.0,84286.0,0.5460768]
[1742666067521,0.00096001,84287.0,84286.0,0.5460768]
[1742666068318,8e-05,84287.0,84286.0,0.5460768]
[1742666068521,0.00096001,84287.0,84286.0,0.5460768]
[1742666068720,0.03106001,84287.0,84286.0,0.5460768]
[1742666068921,0.14973541,84287.0,84286.0,0.5460768]
[1742666069915,0.03106001,84287.0,84286.0,0.5460768]
[1742666070316,0.03106001,84287.0,84286.0,0.5792768]
[1742666070516,0.14973541,84287.0,84286.0,0.5792768]
[1742666071020,0.14973541,84287.0,84285.0,0.000178]
[1742666071021,0.1186768,84286.0,84285.0,0.000178]
[1742666071223,0.1848568,84286.0,84285.0,0.001218]
[1742666071519,0.1848568,84286.0,84285.0,0.000178]
[1742666071722,0.30350116,84286.0,84285.0,0.000818]
[1742666072412,0.33630116,84286.0,84285.0,0.000818]
[1742666072814,0.33630116,84286.0,84285.0,0.030378]
[1742666073014,0.33630116,84286.0,84285.0,0.030978]
[1742666076024,0.33630116,84286.0,84285.0,0.1496562]
[1742666076219,0.44894116,84286.0,84285.0,0.1496562]
[1742666076421,0.26516436,84286.0,84285.0,0.1826562]
[1742666076624,0.11372,84286.0,84285.0,0.2150562]
[1742666078024,0.11368001,84286.0,84285.0,0.2150562]
[1742666080334,0.23235681,84286.0,84285.0,0.2150562]
[1742666080626,0.29605681,84286.0,84285.0,0.2150562]
[1742666085823,0.18341681,84286.0,84285.0,0.2150562]
[1742666098329,0.18341681,84286.0,84285.0,0.22666442]
[1742666103041,0.06474001,84286.0,84285.0,0.22666442]
[1742666104032,0.0593363,84289.0,84286.0,0.0593377]
[1742666104239,0.0593363,84289.0,84288.0,0.3608]
[1742666104434,0.1250363,84289.0,84288.0,0.3608]
[1742666104633,0.1250363,84289.0,84288.0,0.3614]
[1742666104833,0.1250363,84289.0,84288.0,0.4249]
[1742666105034,0.1250363,84289.0,84288.0,0.543574]
[1742666105641,0.0657,84289.0,84288.0,0.543574]
[1742666105834,0.0649,84289.0,84288.0,0.543574]
[1742666106242,0.06566,84289.0,84288.0,0.543574]
[1742666107041,0.1843326,84289.0,84288.0,0.543574]
[1742666111838,0.06566,84289.0,84288.0,0.543574]
[1742666114140,0.0649,84289.0,84288.0,0.543574]
[1742666114349,0.06566,84289.0,84288.0,0.543574]
[1742666116434,0.0649,84289.0,84288.0,0.543574]
[1742666116853,0.0657,84289.0,84288.0,0.543574]
[1742666119450,0.0649,84289.0,84288.0,0.543574]
[1742666119948,0.06574,84289.0,84288.0,0.543574]
[1742666121248,0.1844126,84289.0,84288.0,0.543574]
[1742666121659,0.1835726,84289.0,84288.0,0.543574]
[1742666122845,0.1835726,84289.0,84288.0,0.182774]
[1742666123242,0.1843326,84289.0,84288.0,0.182774]
[1742666131049,0.06566,84289.0,84288.0,0.182774]
[1742666131252,0.1835726,84289.0,84288.0,0.182774]
[1742666131447,0.1843326,84289.0,84288.0,0.182774]
[1742666139049,0.06566,84289.0,84288.0,0.182774]
[1742666139254,0.0649,84289.0,84288.0,0.543574]
[1742666139863,0.06566,84289.0,84288.0,0.543574]
[1742666140960,0.0649,84289.0,84288.0,0.543574]
[1742666141167,0.06566,84289.0,84288.0,0.543574]
[1742666145855,0.09606,84289.0,84288.0,0.543574]
[1742666146060,0.0953,84289.0,84288.0,0.543574]
[1742666154780,0.0961,84289.0,84288.0,0.543574]
[1742666155467,0.0953,84289.0,84288.0,0.543574]
[1742666155668,0.09606,84289.0,84288.0,0.543574]
[1742666156074,0.0953,84289.0,84288.0,0.543574]
[1742666156375,0.09606,84289.0,84288.0,0.543574]
[1742666165685,0.09606,84289.0,84288.0,0.182774]
[1742666170377,0.06566,84289.0,84288.0,0.182774]
[1742666171077,0.0649,84289.0,84288.0,0.182774]
[1742666173282,0.06566,84289.0,84288.0,0.182774]
[1742666174685,0.0649,84289.0,84288.0,0.182774]
[1742666175584,0.0657,84289.0,84288.0,0.182774]
[1742666175891,0.0649,84289.0,84288.0,0.182774]
[1742666176080,0.06574,84289.0,84288.0,0.182774]
[1742666182485,0.184329,84289.0,84288.0,0.119274]
[1742666183097,0.184329,84289.0,84288.0,0.181774]
[1742666187499,0.06566,84289.0,84288.0,0.181774]
[1742666187803,0.1843273,84289.0,84288.0,0.181774]
[1742666190292,0.06566,84289.0,84288.0,0.181774]
[1742666191702,0.1843273,84289.0,84288.0,0.181774]
[1742666192705,0.06566,84289.0,84288.0,0.181774]
[1742666193808,0.1843273,84289.0,84288.0,0.181774]
[1742666196213,0.06566,84289.0,84288.0,0.181774]
[1742666203308,0.06566,84289.0,84288.0,0.542574]
[1742666205819,0.09746,84289.0,84288.0,0.542574]
[1742666208308,0.2161207,84289.0,84288.0,0.542574]
[1742666208513,0.09746,84289.0,84288.0,0.542574]
[1742666209313,0.09746,84289.0,84288.0,0.181774]
[1742666209521,0.09746,84289.0,84288.0,0.542574]
[1742666214021,0.09746,84289.0,84288.0,0.181774]
[1742666214216,0.09746,84289.0,84288.0,0.542574]
[1742666226825,0.02601005,84301.0,84300.0,0.1186453]
[1742666227128,0.05675005,84301.0,84300.0,0.4801653]
[1742666227326,0.16907005,84301.0,84300.0,0.4801653]
[1742666227521,0.14366001,84301.0,84300.0,0.4801653]
[1742666228127,0.17666001,84301.0,84300.0,0.5124653]
[1742666229818,0.17670001,84301.0,84300.0,0.5124653]
[1742666230624,0.17670001,84301.0,84300.0,0.52411757]
[1742666231224,0.17666001,84301.0,84300.0,0.52411757]
[1742666231816,0.06370001,84301.0,84300.0,0.52411757]
[1742666232125,0.17666001,84301.0,84300.0,0.52411757]
[1742666235428,0.29530391,84301.0,84300.0,0.52411757]
[1742666236025,0.17666001,84301.0,84300.0,0.52411757]
[1742666238532,0.06370001,84301.0,84300.0,0.52411757]
[1742666239123,1e-08,84302.0,84301.0,0.1186439]
[1742666239328,1e-08,84302.0,84301.0,0.5777839]
[1742666239524,0.0317,84304.0,84303.0,0.118641]
[1742666239725,0.0317,84304.0,84303.0,0.119561]
[1742666241634,0.03254,84304.0,84303.0,0.119561]
[1742666242828,0.0317,84304.0,84303.0,0.119561]
[1742666243129,0.03254,84304.0,84303.0,0.119561]
[1742666245734,0.0317,84304.0,84303.0,0.119561]
[1742666246236,0.03254,84304.0,84303.0,0.119561]
[1742666247836,0.03254,84304.0,84303.0,0.841161]
[1742666252936,0.06484,84304.0,84303.0,0.841161]
[1742666259536,0.06484,84304.0,84303.0,0.872961]
[1742666266843,0.1834796,84304.0,84303.0,0.872961]
[1742666267637,0.1834796,84304.0,84303.0,0.904961]
[1742666267837,0.1834796,84304.0,84303.0,0.544161]
[1742666268340,0.06484,84304.0,84303.0,0.544161]
[1742666275347,0.1834796,84304.0,84303.0,0.544161]
[1742666277043,0.1834796,84304.0,84303.0,0.183361]
[1742666277247,0.1834796,84304.0,84303.0,0.544161]
[1742666279055,0.19516247,84304.0,84303.0,0.544161]
[1742666279463,0.19516247,84304.0,84303.0,0.183361]
[1742666279657,0.19516247,84304.0,84303.0,0.544161]
[1742666288766,0.19516247,84304.0,84303.0,0.42552]
[1742666289458,0.19516247,84304.0,84303.0,0.544161]
[1742666290060,0.19516247,84304.0,84303.0,0.42552]
[1742666290764,0.19516247,84304.0,84303.0,0.544161]
[1742666291957,0.19516247,84304.0,84303.0,0.512161]
[1742666292959,0.19516247,84304.0,84303.0,0.544361]
[1742666294370,0.1834796,84304.0,84303.0,0.544361]
[1742666295361,0.1950828,84304.0,84303.0,0.544361]
[1742666297667,0.1950828,84304.0,84303.0,0.42572]
[1742666297863,0.31370183,84304.0,84303.0,0.42572]
[1742666298470,0.31370183,84304.0,84303.0,0.544361]
[1742666300771,0.34560183,84304.0,84303.0,0.544361]
[1742666305368,0.33399863,84304.0,84303.0,0.544361]
[1742666308584,0.33399863,84304.0,84303.0,0.183561]
[1742666308787,0.33399863,84304.0,84303.0,0.544361]
[1742666338805,0.33399863,84304.0,84303.0,0.577561]
[1742666341721,0.33399863,84304.0,84303.0,0.544361]
[1742666344715,0.44663863,84304.0,84303.0,0.544361]
[1742666351218,0.33399863,84304.0,84303.0,0.544361]
[1742666351415,0.44663863,84304.0,84303.0,0.544361]
[1742666361233,0.44663863,84304.0,84303.0,0.42572]
[1742666361535,0.44663863,84304.0,84303.0,0.544361]
[1742666364537,0.33399863,84304.0,84303.0,0.36172]
[1742666364841,0.33399863,84304.0,84303.0,0.00092]
[1742666364842,0.80743863,84304.0,84303.0,0.00092]
[1742666365034,0.1186509,84296.0,84295.0,0.0319]
[1742666365233,0.2312909,84296.0,84295.0,0.06504]
[1742666365437,0.23217091,84296.0,84295.0,0.06504]
[1742666365937,0.41378994,84296.0,84295.0,0.06504]
[1742666383645,0.30114994,84296.0,84295.0,0.06504]
[1742666383852,0.41378994,84296.0,84295.0,0.06504]
[1742666403153,0.15019904,84296.0,84295.0,0.06504]
[1742666403357,0.23213904,84296.0,84295.0,0.1836923]
[1742666403656,0.11352001,84296.0,84295.0,0.1836923]
[1742666404263,0.11264,84296.0,84295.0,0.1836923]
[1742666404466,0.11352001,84296.0,84295.0,0.1836923]
[1742666405268,0.00088001,84296.0,84295.0,0.1836923]
[1742666408270,0.00088001,84296.0,84295.0,0.19568193]
[1742666408667,8e-05,84297.0,84296.0,0.1186509]
[1742666408871,8e-05,84297.0,84296.0,0.1826909]
[1742666409569,0.11264,84301.0,84300.0,0.1186453]
[1742666409881,0.11348,84301.0,84300.0,0.1194853]
[1742666410267,0.00084,84301.0,84300.0,0.1826853]
[1742666414074,0.1194839,84301.0,84300.0,0.1826853]
[1742666417678,0.03174,84301.0,84300.0,0.1826853]
[1742666418078,0.1503839,84301.0,84300.0,0.1826853]
[1742666420767,0.1820839,84301.0,84300.0,0.1826853]
[1742666420967,0.2125839,84301.0,84300.0,0.1826853]
[1742666421468,0.2125839,84301.0,84300.0,0.5434853]
[1742666422462,0.09394,84301.0,84300.0,0.5434853]
[1742666425280,0.2125839,84301.0,84300.0,0.5434853]
[1742666435885,0.2125839,84301.0,84300.0,0.42484]
[1742666436180,0.2125839,84301.0,84300.0,0.5434853]
[1742666438885,0.2125839,84301.0,84300.0,0.06404]
[1742666439185,0.2125839,84301.0,84300.0,0.1826853]
[1742666442872,0.2125839,84301.0,84300.0,0.06404]
[1742666443069,0.2125839,84301.0,84300.0,0.1826853]
[1742666444684,0.2125839,84301.0,84300.0,0.06404]
[1742666445585,0.2125839,84301.0,84300.0,0.1826853]
[1742666447578,0.2125839,84301.0,84300.0,0.06404]
[1742666448184,0.2125839,84301.0,84300.0,0.1826853]
[1742666450290,0.1820839,84301.0,84300.0,0.2148853]
[1742666454179,0.1820839,84301.0,84300.0,0.09624]
[1742666454982,0.1820839,84301.0,84300.0,0.2148853]
[1742666463197,0.1820839,84301.0,84300.0,0.09624]
[1742666463395,0.1820839,84301.0,84300.0,0.06404]
[1742666471795,0.1820839,84301.0,84300.0,0.5434853]
[1742666471992,0.1820839,84301.0,84300.0,0.42484]
[1742666474997,0.1820839,84301.0,84300.0,0.5434853]
[1742666475207,0.1820839,84301.0,84300.0,0.42484]
[1742666476413,0.1820839,84301.0,84300.0,0.5434853]
[1742666476601,0.1820839,84301.0,84300.0,0.42484]
[1742666477510,0.1820839,84301.0,84300.0,0.78564]
[1742666478327,0.1820839,84301.0,84300.0,0.9042853]
[1742666478798,0.1820839,84301.0,84300.0,0.1826853]
[1742666479011,0.1820839,84301.0,84300.0,0.9042853]
[1742666479818,0.1820839,84301.0,84300.0,0.78564]
[1742666483417,0.1820839,84301.0,84300.0,0.42484]
[1742666484515,0.1820839,84301.0,84300.0,0.5434853]
[1742666485313,0.1820839,84301.0,84300.0,0.42484]
[1742666488913,0.0593063,84324.0,84300.0,0.42484]
[1742666489115,0.00116,84304.0,84303.0,0.0593205]
[1742666489315,0.1186396,84304.0,84303.0,0.1790401]
[1742666489506,0.1186396,84304.0,84303.0,0.2437401]
[1742666489816,0.15081961,84304.0,84303.0,0.2437401]
[1742666490025,0.18151961,84304.0,84303.0,0.2437401]
[1742666491219,0.18151961,84304.0,84303.0,0.25556258]
[1742666491416,0.18151961,84304.0,84303.0,0.1251005]
[1742666491822,0.18151961,84304.0,84303.0,0.4859005]
[1742666495025,0.18151961,84304.0,84303.0,0.49789408]
[1742666495823,0.18151961,84304.0,84303.0,0.4859005]
[1742666497519,0.18151961,84304.0,84303.0,0.49774067]
[1742666506919,0.06288001,84304.0,84303.0,0.49774067]
[1742666507127,0.18151961,84304.0,84303.0,0.49774067]
[1742666508223,0.06288001,84304.0,84303.0,0.49774067]
[1742666508419,0.18151961,84304.0,84303.0,0.49774067]
[1742666517636,0.18151961,84304.0,84303.0,0.4859005]
[1742666522239,0.18151961,84304.0,84303.0,0.42658]
[1742666525650,0.18151961,84304.0,84303.0,0.545221]
[1742666527144,0.18151961,84304.0,84303.0,0.42658]
[1742666528938,0.18151961,84304.0,84303.0,0.545221]
[1742666529652,0.06288001,84304.0,84303.0,0.545221]
[1742666533248,0.3933927,84325.0,84307.0,0.0593176]
[1742666533548,0.3933927,84325.0,84315.0,0.1186228]
[1742666533549,0.2311843,84316.0,84315.0,0.1186228]
[1742666533746,0.29508431,84316.0,84315.0,0.4808228]
[1742666533953,0.30669733,84316.0,84315.0,0.4808228]
[1742666534153,0.30669733,84316.0,84315.0,0.5416228]
[1742666536750,0.30669733,84316.0,84315.0,0.423]
[1742666537753,0.30669733,84316.0,84315.0,0.43492041]
[1742666539457,0.30669733,84316.0,84315.0,0.423]
[1742666541749,0.19413733,84316.0,84315.0,0.423]
[1742666542047,0.30665733,84316.0,84315.0,0.423]
[1742666553475,0.42525948,84316.0,84315.0,0.3622]
[1742666556681,0.42525948,84316.0,84315.0,0.0014]
[1742666559282,0.42525948,84316.0,84315.0,0.032]
[1742666562879,0.42525948,84316.0,84315.0,0.0306]
[1742666563384,0.42525948,84316.0,84315.0,0.032]
[1742666566274,0.42525948,84316.0,84315.0,0.0014]
[1742666566676,0.42525948,84316.0,84315.0,0.0325]
[1742666574587,0.31273948,84316.0,84315.0,0.0325]
[1742666574778,0.42525948,84316.0,84315.0,0.0325]
[1742666582595,0.42525948,84316.0,84315.0,0.0635]
[1742666583895,0.43190948,84316.0,84315.0,0.0635]
[1742666584789,0.43790948,84316.0,84315.0,0.0635]
[1742666585697,0.43964948,84316.0,84315.0,0.0635]
[1742666588497,0.44085948,84316.0,84315.0,0.0635]
[1742666589098,0.37835948,84316.0,84315.0,0.0635]
[1742666589391,0.44155948,84316.0,84315.0,0.0635]
[1742666594596,0.47881948,84316.0,84315.0,0.0635]
[1742666605503,0.50991948,84316.0,84315.0,0.0325]
[1742666613510,0.50991948,84316.0,84315.0,0.0311]
[1742666613710,0.50991948,84316.0,84315.0,0.03258]
[1742666614121,0.1186382,84305.0,84304.0,0.063278]
[1742666614319,0.1186382,84305.0,84292.0,0.0315]
[1742666614320,0.1186551,84293.0,84292.0,0.0315]
[1742666614619,0.2319751,84293.0,84292.0,0.03228]
[1742666614813,0.35057725,84293.0,84292.0,0.03228]
[1742666615212,0.36235234,84293.0,84292.0,0.03228]
[1742666615414,0.42525234,84293.0,84292.0,0.03228]
[1742666615819,0.42525234,84293.0,84292.0,0.00068]
[1742666616132,0.1186636,84287.0,84286.0,0.0658]
[1742666616413,0.5928636,84287.0,84286.0,0.06648]
[1742666616819,0.5988636,84287.0,84286.0,0.06648]
[1742666617421,0.6427836,84287.0,84286.0,0.06648]
[1742666617625,0.6440036,84287.0,84286.0,0.06848]
[1742666618134,0.6457436,84287.0,84286.0,0.07048]
[1742666619025,0.6457436,84287.0,84286.0,0.06848]
[1742666619431,0.6457436,84287.0,84286.0,0.06648]
[1742666619825,0.6457436,84287.0,84286.0,0.0658]
[1742666629632,0.6457436,84287.0,84280.0,0.0301]
[1742666629633,0.118672,84281.0,84280.0,0.0301]
[1742666629829,0.119352,84281.0,84280.0,0.03078]
[1742666630030,0.232032,84281.0,84280.0,0.03078]
[1742666630631,0.294832,84281.0,84280.0,0.04116313]
[1742666631230,0.294832,84281.0,84280.0,0.04201179]
[1742666631633,0.4134834,84281.0,84280.0,0.01191179]
[1742666633237,0.4134834,84281.0,84280.0,0.00068]
[1742666633436,0.4134834,84281.0,84280.0,0.01276045]
[1742666633827,0.4134834,84281.0,84280.0,0.00068]
[1742666634033,0.4134834,84281.0,84280.0,0.01360911]
[1742666634234,0.4201334,84281.0,84280.0,0.01360911]
[1742666636442,0.4201334,84281.0,84280.0,0.01445889]
[1742666637142,0.4201334,84281.0,84280.0,0.01530853]
[1742666639047,0.4201334,84281.0,84280.0,0.01615831]
[1742666639751,0.4201334,84281.0,84280.0,0.01700795]
[1742666642155,0.4201334,84281.0,84280.0,0.01785746]
[1742666642652,0.4201334,84281.0,84280.0,0.01870683]
[1742666643351,0.4201334,84281.0,84280.0,0.01802683]
[1742666643649,0.1887814,84281.0,84280.0,0.01802683]
[1742666643853,0.3074534,84281.0,84280.0,0.01802683]
[1742666644154,0.4200534,84281.0,84280.0,0.01802683]
[1742666644751,0.09979846,84279.0,84278.0,0.0606]
[1742666645050,0.10047846,84279.0,84278.0,0.06128]
[1742666645346,0.10047846,84279.0,84278.0,0.0606]
[1742666645549,0.28383268,84279.0,84278.0,0.06128]
[1742666646752,0.28383268,84279.0,84278.0,0.0606]
[1742666647049,0.28504268,84279.0,84278.0,0.0606]
[1742666647252,0.28504268,84279.0,84278.0,0.06128]
[1742666647749,0.32831268,84279.0,84278.0,0.06128]
[1742666648655,0.33005268,84279.0,84278.0,0.06128]
[1742666648846,0.33005268,84279.0,84278.0,0.0606]
[1742666650945,0.33005268,84279.0,84278.0,0.06128]
[1742666652354,0.33005268,84279.0,84278.0,0.1799562]
[1742666653957,0.33005268,84279.0,84278.0,0.06128]
[1742666655556,0.33005268,84279.0,84278.0,0.0606]
[1742666656047,0.33005268,84279.0,84278.0,0.06136]
[1742666656647,0.33670268,84279.0,84278.0,0.06136]
[1742666682485,0.33670268,84279.0,84278.0,0.0606]
[1742666682682,0.33670268,84279.0,84278.0,0.06132]
[1742666682882,0.44926268,84279.0,84278.0,0.06132]
[1742666684467,0.44926268,84279.0,84278.0,0.0606]
[1742666687272,0.44926268,84279.0,84278.0,0.06128]
[1742666691682,0.44926268,84279.0,84278.0,0.0606]
[1742666691884,0.44926268,84279.0,84278.0,0.06136]
[1742666695287,0.44926268,84279.0,84278.0,0.0606]
[1742666701086,0.33670268,84279.0,84278.0,0.0606]
[1742666701285,0.33670268,84279.0,84278.0,0.06136]
[1742666701493,0.44922268,84279.0,84278.0,0.06136]
[1742666701689,0.44922268,84279.0,84278.0,0.07306851]
[1742666707787,0.23690422,84279.0,84278.0,0.19174471]
[1742666707995,0.08585,84279.0,84278.0,0.19174471]
[1742666709199,0.05355,84279.0,84278.0,0.19174471]
[1742666709401,0.05287,84279.0,84278.0,0.55254471]
[1742666710303,0.05363,84279.0,84278.0,0.55254471]
[1742666710996,0.08497,84279.0,84278.0,0.55254471]
[1742666711197,0.08569,84279.0,84278.0,0.55254471]
[1742666712201,0.11839,84279.0,84278.0,0.55254471]
[1742666713494,0.08569,84279.0,84278.0,0.76553982]
[1742666713906,0.08497,84279.0,84278.0,0.76553982]
[1742666714206,0.08573,84279.0,84278.0,0.76553982]
[1742666714702,0.08497,84279.0,84278.0,0.76553982]
[1742666715106,0.08565,84279.0,84278.0,0.76553982]
[1742666716092,0.08497,84279.0,84278.0,0.76553982]
[1742666716491,0.08557001,84279.0,84278.0,0.76553982]
[1742666716901,0.08497,84279.0,84278.0,0.76553982]
[1742666717292,0.08569,84279.0,84278.0,0.55254471]
[1742666721808,0.08569,84279.0,84278.0,0.56754415]
[1742666722202,0.08569,84279.0,84278.0,0.55254471]
[1742666730120,0.08497,84279.0,84278.0,0.49194471]
[1742666730322,0.08565,84279.0,84278.0,0.49194471]
[1742666730520,0.11865,84279.0,84278.0,0.49194471]
[1742666731007,0.11865,84279.0,84278.0,0.13114471]
[1742666731519,0.2373248,84279.0,84278.0,0.13114471]
[1742666732421,0.11865,84279.0,84278.0,0.13114471]
[1742666733117,0.2373248,84279.0,84278.0,0.13114471]
[1742666734516,0.36187905,84279.0,84278.0,0.1194362]
[1742666734711,0.48053327,84279.0,84278.0,0.00076]
[1742666734920,0.1186833,84273.0,84272.0,0.1188621]
[1742666735123,0.2318833,84273.0,84272.0,0.1195421]
[1742666735818,0.2943833,84273.0,84272.0,0.1195421]
[1742666736611,0.2943833,84273.0,84272.0,0.1215421]
[1742666736818,0.2943833,84273.0,84272.0,0.1235421]
[1742666737927,0.3010333,84273.0,84272.0,0.1235421]
[1742666738227,0.3027733,84273.0,84272.0,0.1235421]
[1742666738434,0.18409,84273.0,84272.0,0.1235421]
[1742666738622,0.22136,84273.0,84272.0,0.1235421]
[1742666738922,0.22856,84273.0,84272.0,0.1235421]
[1742666739111,0.3472433,84273.0,84272.0,0.1235421]
[1742666746225,0.22856,84273.0,84272.0,0.1235421]
[1742666746928,0.22856,84273.0,84272.0,0.16539061]
[1742666747129,0.3472433,84273.0,84272.0,0.1537421]
[1742666749724,0.3472433,84273.0,84272.0,0.5145421]
[1742666752936,0.3472433,84273.0,84272.0,0.5450421]
[1742666753523,0.3472433,84273.0,84272.0,0.1842421]
[1742666753737,0.3472433,84273.0,84272.0,0.5450421]
[1742666759126,0.3472433,84273.0,84272.0,0.426358]
[1742666759439,0.3472433,84273.0,84272.0,0.5145427]
[1742666759623,0.3472433,84273.0,84272.0,0.4843427]
[1742666761128,0.3472433,84273.0,84272.0,0.5150427]
[1742666761328,0.3472433,84273.0,84272.0,0.5460427]
[1742666764542,0.3472433,84273.0,84272.0,0.365658]
[1742666765139,0.3472433,84273.0,84272.0,0.4843427]
[1742666765628,0.46590597,84273.0,84272.0,0.4843427]
[1742666766137,0.46590597,84273.0,84272.0,0.365658]
[1742666766539,0.46590597,84273.0,84272.0,0.4843427]
[1742666767042,0.46590597,84273.0,84272.0,0.69733781]
[1742666769536,0.46590597,84273.0,84272.0,0.4843427]
[1742666770146,0.34722267,84273.0,84272.0,0.5467427]
[1742666770342,0.34722267,84273.0,84272.0,0.5773427]
[1742666770845,0.46590597,84273.0,84272.0,0.5773427]
[1742666771046,0.34722267,84273.0,84272.0,0.5773427]
[1742666771342,0.46590597,84273.0,84272.0,0.5773427]
[1742666772538,0.35338597,84273.0,84272.0,0.5773427]
[1742666772745,0.46590597,84273.0,84272.0,0.5773427]
[1742666783436,0.46590597,84273.0,84272.0,0.2165427]
[1742666783746,0.46590597,84273.0,84272.0,0.5773427]
[1742666784146,0.46590597,84273.0,84272.0,0.79033781]
[1742666784350,0.46590597,84273.0,84272.0,0.42953781]
[1742666784847,0.46590597,84273.0,84272.0,0.79033781]
[1742666787648,0.46590597,84273.0,84272.0,0.42953781]
[1742666787836,0.46590597,84273.0,84272.0,0.79033781]
[1742666788447,0.46590597,84273.0,84272.0,0.42953781]
[1742666788746,0.46590597,84273.0,84272.0,0.79033781]
[1742666794746,0.46590597,84273.0,84272.0,0.5773427]
[1742666794747,0.35338597,84273.0,84272.0,0.5773427]
[1742666795046,0.46590597,84273.0,84272.0,0.5773427]
[1742666797352,0.46590597,84273.0,84272.0,0.2165427]
[1742666797556,0.46590597,84273.0,84272.0,0.5773427]
[1742666802659,0.46590597,84273.0,84272.0,0.79033781]
[1742666811674,0.46590597,84273.0,84272.0,0.5773427]
[1742666816875,0.46590597,84273.0,84272.0,0.365658]
[1742666817067,0.118696,84264.0,84263.0,0.33169251]
[1742666817268,0.592696,84264.0,84263.0,0.21363511]
[1742666817467,0.986396,84264.0,84263.0,0.21363511]
[1742666817667,1.10505867,84264.0,84263.0,0.21363511]
[1742666818075,1.10505867,84264.0,84263.0,0.00064]
[1742666818279,1.17055867,84264.0,84263.0,0.00464]
[1742666818577,1.17055867,84264.0,84263.0,0.00864]
[1742666819970,1.17775867,84264.0,84263.0,0.00864]
[1742666820177,1.19791424,84264.0,84263.0,0.00864]
[1742666820372,1.23518424,84264.0,84263.0,0.00864]
[1742666822277,1.23518424,84264.0,84263.0,0.008]
[1742666831688,0.51358424,84264.0,84263.0,0.008]
[1742666831883,1.23518424,84264.0,84263.0,0.0086]
[1742666832087,1.23518424,84264.0,84263.0,0.008]
[1742666841385,0.51358424,84264.0,84263.0,0.008]
[1742666841583,1.23518424,84264.0,84263.0,0.00868]
[1742666841896,1.23518424,84264.0,84263.0,0.008]
[1742666843393,1.23518424,84264.0,84263.0,0.0391]
[1742666844692,0.51358424,84264.0,84263.0,0.0391]
[1742666844895,1.23518424,84264.0,84263.0,0.03978]
[1742666845096,1.23518424,84264.0,84263.0,0.0391]
[1742666850596,0.51358424,84264.0,84263.0,0.0391]
[1742666850896,1.23518424,84264.0,84263.0,0.0397]
[1742666851092,1.23518424,84264.0,84263.0,0.0391]
[1742666852495,0.51358424,84264.0,84263.0,0.0391]
[1742666852691,1.23518424,84264.0,84263.0,0.03974]
[1742666852888,1.23518424,84264.0,84263.0,0.0391]
[1742666860696,1.25891896,84264.0,84263.0,0.0391]
[1742666861094,1.23518424,84264.0,84263.0,0.0391]
[1742666861397,1.25900993,84264.0,84263.0,0.0391]
[1742666861898,0.53740993,84264.0,84263.0,0.0391]
[1742666862090,1.23518424,84264.0,84263.0,0.03978]
[1742666862287,1.25900993,84264.0,84263.0,0.0391]
[1742666863790,0.53740993,84264.0,84263.0,0.0391]
[1742666864006,0.53740993,84264.0,84263.0,0.0397]
[1742666864007,1.23518424,84264.0,84263.0,0.0397]
[1742666864203,1.25900993,84264.0,84263.0,0.0391]
[1742666865492,1.23518424,84264.0,84263.0,0.0391]
[1742666867306,0.51358424,84264.0,84263.0,0.0391]
[1742666867506,1.23518424,84264.0,84263.0,0.0397]
[1742666867807,1.23518424,84264.0,84263.0,0.0391]
[1742666871405,0.51358424,84264.0,84263.0,0.0391]
[1742666871707,1.23518424,84264.0,84263.0,0.0397]
[1742666871905,1.23518424,84264.0,84263.0,0.0391]
[1742666872304,0.51358424,84264.0,84263.0,0.0391]
[1742666872506,1.23518424,84264.0,84263.0,0.03978]
[1742666872711,1.23518424,84264.0,84263.0,0.0391]
[1742666875200,0.51358424,84264.0,84263.0,0.0391]
[1742666875402,1.23518424,84264.0,84263.0,0.0397]
[1742666875594,1.23518424,84264.0,84263.0,0.0391]
[1742666887208,0.51358424,84264.0,84263.0,0.0391]
[1742666887413,1.23518424,84264.0,84263.0,0.03978]
[1742666887615,1.25872416,84264.0,84263.0,0.0391]
[1742666888017,1.28518579,84264.0,84263.0,0.0391]
[1742666891508,1.26164587,84264.0,84263.0,0.0391]
[1742666892016,1.23518424,84264.0,84263.0,0.0391]
[1742666892223,1.25873106,84264.0,84263.0,0.0391]